[Event "ESP-ch Rapid 2018"]
[Site "Linares"]
[Date "2018.08.19"]
[Round "9"]
[White "Crespo Ruiz, Manuel Maria"]
[Black "Merario Alarcon, Andres"]
[Result "0-1"]
[ECO "A40"]
[WhiteElo "2026"]
[BlackElo "2406"]
[Annotator "NA"]
[PlyCount "148"]
[EventDate "2018.08.19"]
[EventType "team-tourn"]
[EventCountry "ESP"]
[SourceTitle "playchess.com"]
[Source "ChessBase"]
[SourceQuality "1"]
[TimeControl "900+5"]

1. d4 {[%emt 0:00:00]} a6 {[%emt 0:00:02]} 2. Nf3 {[%emt 0:00:02]} d5 {[%emt 0:00:08]} 3. Bf4 {[%emt 0:00:12]} e6 {[%emt 0:00:57]} 4. e3 {[%emt 0:00:03]} c5 {[%emt 0:00:23]} 5. Nbd2 {[%emt 0:00:06]} Nc6 {[%emt 0:00:06]} 6. c3 {[%emt 0:00:15]} Nf6 {[%emt 0:00:13]} 7. Bd3 {[%emt 0:00:03]} cxd4 {[%emt 0:00:16]} 8. cxd4 {[%emt 0:00:14]} Be7 {[%emt 0:01:08]} 9. O-O {[%emt 0:00:04]} O-O {[%emt 0:00:02]} 10. h3 {[%emt 0:00:24]} Bd7 {[%emt 0:00:05]} 11. Rc1 {[%emt 0:00:10]} Nb4 {[%emt 0:00:25]} 12. Bb1 {[%emt 0:02:03]} Bb5 {[%emt 0:00:13]} 13. Re1 {[%emt 0:00:03]} Nd3 {[%emt 0:00:25]} 14. Bxd3 {[%emt 0:00:20]} Bxd3 {[%emt 0:00:02]} 15. Nb3 {[%emt 0:00:07]} Bc4 {[%emt 0:00:29]} 16. Ne5 {[%emt 0:00:36]} Rc8 {[%emt 0:00:25]} 17. Nxc4 {[%emt 0:00:40]} dxc4 {[%emt 0:00:02]} 18. Nd2 {[%emt 0:00:16]} b5 {[%emt 0:00:13]} 19. Qc2 {[%emt 0:00:48]} Nd5 {[%emt 0:00:06]} 20. Qe4 {[%emt 0:00:44]} Nb4 {[%emt 0:00:54]} 21. Ra1 {[%emt 0:00:19]} Qd5 {[%emt 0:00:16]} 22. Qb1 {[%emt 0:00:15]} Nd3 {[%emt 0:00:04]} 23. Rd1 {[%emt 0:00:49]} Nxf4 {[%emt 0:00:16]} 24. exf4 {[%emt 0:00:04]} Qxd4 {[%emt 0:00:17]} 25. Ne4 {[%emt 0:00:26]} Qb6 {[%emt 0:00:02]} 26. Qc2 {[%emt 0:00:28]} Rfd8 {[%emt 0:00:28]} 27. Re1 {[%emt 0:00:07]} Rd4 {[%emt 0:00:10]} 28. Re3 {[%emt 0:00:15]} Rcd8 {[%emt 0:00:25]} 29. Rae1 {[%emt 0:00:15]} g6 {[%emt 0:00:18]} 30. Qe2 {[%emt 0:02:38]} Rd3 {[%emt 0:00:14]} 31. Qf3 {[%emt 0:00:23]} Qd4 {[%emt 0:00:14]} 32. g4 {[%emt 0:02:02]} Rxe3 {[%emt 0:00:23]} 33. Rxe3 {[%emt 0:00:02]} Qd1+ {[%emt 0:00:15]} 34. Kg2 {[%emt 0:00:08]} Qxf3+ {[%emt 0:00:05]} 35. Kxf3 {[%emt 0:00:04]} f5 {[%emt 0:00:21]} 36. Nc3 {[%emt 0:00:36]} Kf7 {[%emt 0:00:03]} 37. g5 {[%emt 0:00:14]} Bf8 {[%emt 0:00:27]} 38. Ke2 {[%emt 0:00:05]} Bg7 {[%emt 0:00:09]} 39. Nd1 {[%emt 0:00:06]} Rd4 {[%emt 0:00:08]} 40. Ra3 {[%emt 0:00:06]} Rd6 {[%emt 0:00:13]} 41. Re3 {[%emt 0:00:33]} Bd4 {[%emt 0:00:03]} 42. Ra3 {[%emt 0:00:09]} Bc5 {[%emt 0:00:02]} 43. Rf3 {[%emt 0:00:02]} Rd4 {[%emt 0:00:05]} 44. Ne3 {[%emt 0:00:12]} Bd6 {[%emt 0:00:16]} 45. Ng2 {[%emt 0:00:05]} Bb4 {[%emt 0:00:06]} 46. a3 {[%emt 0:00:08]} Ba5 {[%emt 0:00:10]} 47. b4 {[%emt 0:00:08]} Bb6 {[%emt 0:00:14]} 48. h4 {[%emt 0:00:38]} a5 {[%emt 0:00:12]} 49. h5 {[%emt 0:00:06]} axb4 {[%emt 0:00:06]} 50. hxg6+ {[%emt 0:00:03]} hxg6 {[%emt 0:00:02]} 51. axb4 {[%emt 0:00:01]} Bc7 {[%emt 0:00:03]} 52. Ra3 {[%emt 0:00:13]} Ke7 {[%emt 0:00:34]} 53. Ra7 {[%emt 0:00:24]} Kd7 {[%emt 0:00:10]} 54. Rb7 {[%emt 0:00:07]} Kc6 {[%emt 0:00:06]} 55. Ra7 {[%emt 0:00:03]} c3 {[%emt 0:00:10]} 56. Ra3 {[%emt 0:00:10]} Rc4 {[%emt 0:00:22]} 57. Ra1 {[%emt 0:00:05]} Rxb4 {[%emt 0:00:07]} 58. Kd3 {[%emt 0:00:04]} Bxf4 {[%emt 0:00:14]} 59. Ra6+ {[%emt 0:00:06]} Kd5 {[%emt 0:00:06]} 60. Kxc3 {[%emt 0:00:02]} Rc4+ {[%emt 0:00:03]} 61. Kd3 {[%emt 0:00:03]} Bxg5 {[%emt 0:00:03]} 62. f4 {[%emt 0:00:03]} Bf6 {[%emt 0:00:02]} 63. Ne3+ {[%emt 0:00:02]} Kc5 {[%emt 0:00:06]} 64. Nxc4 {[%emt 0:00:09]} bxc4+ {[%emt 0:00:02]} 65. Ke3 {[%emt 0:00:09]} Bd4+ {[%emt 0:00:12]} 66. Kd2 {[%emt 0:00:05]} Kd5 {[%emt 0:00:14]} 67. Ra4 {[%emt 0:00:05]} e5 {[%emt 0:01:33]} 68. fxe5 {[%emt 0:00:00]} Bxe5 {[%emt 0:00:08]} 69. Ke3 {[%emt 0:00:00]} Bd4+ {[%emt 0:00:28]} 70. Kf4 {[%emt 0:00:00]} c3 {[%emt 0:00:02]} 71. Ra2 {[%emt 0:00:16]} Kc4 {[%emt 0:00:50]} 72. Kg5 {[%emt 0:00:10]} Kb3 {[%emt 0:00:02]} 73. Ra8 {[%emt 0:00:05]} c2 {[%emt 0:00:03]} 74. Rb8+ {[%emt 0:00:04]} Kc4 {[%emt 0:00:05]} 0-1

[Event "ESP-ch Rapid 2018"]
[Site "Linares"]
[Date "2018.08.19"]
[Round "9"]
[White "Bento Iglesias, Pablo"]
[Black "Galvez Extremera, Francisco"]
[Result "0-1"]
[ECO "B14"]
[WhiteElo "2007"]
[BlackElo "2142"]
[Annotator "NA"]
[PlyCount "80"]
[EventDate "2018.08.19"]
[EventType "team-tourn"]
[EventCountry "ESP"]
[SourceTitle "playchess.com"]
[Source "ChessBase"]
[SourceQuality "1"]
[TimeControl "900+5"]

1. e4 {[%emt 0:00:00]} c6 {[%emt 0:00:17]} 2. c4 {[%emt 0:00:00]} d5 {[%emt 0:00:27]} 3. exd5 {[%emt 0:00:00]} cxd5 {[%emt 0:00:01]} 4. d4 {[%emt 0:00:00]} Nf6 {[%emt 0:00:04]} 5. Nc3 {[%emt 0:00:05]} e6 {[%emt 0:00:01]} 6. Bd3 {[%emt 0:00:07]} Be7 {[%emt 0:00:11]} 7. Nf3 {[%emt 0:00:09]} O-O {[%emt 0:00:14]} 8. O-O {[%emt 0:00:02]} dxc4 {[%emt 0:00:55]} 9. Bxc4 {[%emt 0:00:03]} a6 {[%emt 0:00:02]} 10. a3 {[%emt 0:00:26]} b5 {[%emt 0:00:03]} 11. Ba2 {[%emt 0:00:10]} Bb7 {[%emt 0:00:02]} 12. Be3 {[%emt 0:00:08]} Qd6 {[%emt 0:00:51]} 13. b4 {[%emt 0:00:52]} Nbd7 {[%emt 0:00:07]} 14. Rc1 {[%emt 0:00:15]} Ng4 {[%emt 0:00:34]} 15. d5 {[%emt 0:01:29]} Nxe3 {[%emt 0:00:29]} 16. fxe3 {[%emt 0:00:05]} exd5 {[%emt 0:02:50]} 17. Nxd5 {[%emt 0:00:24]} Nf6 {[%emt 0:00:24]} 18. Nxe7+ {[%emt 0:00:49]} Qxe7 {[%emt 0:00:02]} 19. Re1 {[%emt 0:00:33]} Rad8 {[%emt 0:00:12]} 20. Qe2 {[%emt 0:00:06]} Rfe8 {[%emt 0:00:18]} 21. Ng5 {[%emt 0:02:01]} Bd5 {[%emt 0:00:24]} 22. Bb1 {[%emt 0:00:52]} h6 {[%emt 0:00:37]} 23. Nf3 {[%emt 0:00:17]} Ng4 {[%emt 0:00:42]} 24. e4 {[%emt 0:00:14]} Qa7+ {[%emt 0:00:06]} 25. Kh1 {[%emt 0:00:55]} Nf2+ {[%emt 0:00:34]} 26. Kg1 {[%emt 0:00:01]} Nxe4+ {[%emt 0:00:09]} 27. Qe3 {[%emt 0:00:06]} Qb7 {[%emt 0:00:27]} 28. Nd2 {[%emt 0:00:16]} Nf6 {[%emt 0:00:06]} 29. Qg3 {[%emt 0:03:13]} Rxe1+ {[%emt 0:00:12]} 30. Rxe1 {[%emt 0:00:01]} Bxg2 {[%emt 0:00:16]} 31. Nb3 {[%emt 0:01:20]} Bc6 {[%emt 0:00:47]} 32. Nc5 {[%emt 0:00:01]} Qc8 {[%emt 0:00:15]} 33. h3 {[%emt 0:00:38]} Rd2 {[%emt 0:00:19]} 34. Qe5 {[%emt 0:00:35]} Rg2+ {[%emt 0:02:13]} 35. Kf1 {[%emt 0:00:01]} Rg5 {[%emt 0:00:50]} 36. Qe3 {[%emt 0:00:58]} g6 {[%emt 0:00:36]} 37. h4 {[%emt 0:00:37]} Rg2 {[%emt 0:00:11]} 38. Qf4 {[%emt 0:00:15]} Qh3 {[%emt 0:00:12]} 39. Qb8+ {[%emt 0:00:05]} Kg7 {[%emt 0:00:03]} 40. Be4 {[%emt 0:00:04]} Qh1# {[%emt 0:00:03]} 0-1

[Event "ESP-ch Rapid 2018"]
[Site "Linares"]
[Date "2018.08.19"]
[Round "9"]
[White "Blazquez Gomez, Miguel"]
[Black "Calzetta Ruiz, Monica"]
[Result "1-0"]
[ECO "B20"]
[WhiteElo "1998"]
[BlackElo "2302"]
[Annotator "NA"]
[PlyCount "120"]
[EventDate "2018.08.19"]
[EventType "team-tourn"]
[EventCountry "ESP"]
[SourceTitle "playchess.com"]
[Source "ChessBase"]
[SourceQuality "1"]
[TimeControl "900+5"]

1. e4 {[%emt 0:00:00]} c5 {[%emt 0:00:00]} 2. a3 {[%emt 0:00:00]} e5 {[%emt 0:00:02]} 3. Bc4 {[%emt 0:00:03]} Nf6 {[%emt 0:00:01]} 4. Nc3 {[%emt 0:00:04]} Be7 {[%emt 0:00:03]} 5. d3 {[%emt 0:00:02]} O-O {[%emt 0:00:07]} 6. f4 {[%emt 0:00:03]} Nc6 {[%emt 0:00:07]} 7. Nf3 {[%emt 0:00:07]} d6 {[%emt 0:00:10]} 8. f5 {[%emt 0:00:15]} Nd4 {[%emt 0:00:34]} 9. O-O {[%emt 0:00:14]} a6 {[%emt 0:01:22]} 10. Bg5 {[%emt 0:00:41]} b5 {[%emt 0:00:04]} 11. Ba2 {[%emt 0:00:02]} Bb7 {[%emt 0:00:07]} 12. Bxf6 {[%emt 0:00:21]} Bxf6 {[%emt 0:00:02]} 13. Nd5 {[%emt 0:00:09]} Rc8 {[%emt 0:01:02]} 14. c3 {[%emt 0:05:35]} Nxf3+ {[%emt 0:00:25]} 15. Qxf3 {[%emt 0:00:02]} c4 {[%emt 0:00:15]} 16. dxc4 {[%emt 0:00:07]} bxc4 {[%emt 0:00:02]} 17. Rad1 {[%emt 0:00:12]} Bxd5 {[%emt 0:03:30]} 18. Rxd5 {[%emt 0:00:07]} Qb6+ {[%emt 0:00:17]} 19. Qf2 {[%emt 0:00:39]} Qxf2+ {[%emt 0:00:10]} 20. Kxf2 {[%emt 0:00:59]} Rc6 {[%emt 0:00:06]} 21. Rfd1 {[%emt 0:00:24]} Rb8 {[%emt 0:00:02]} 22. R5d2 {[%emt 0:00:35]} Bg5 {[%emt 0:00:54]} 23. Re2 {[%emt 0:00:15]} Kf8 {[%emt 0:00:09]} 24. g3 {[%emt 0:00:01]} h5 {[%emt 0:01:41]} 25. h4 {[%emt 0:00:26]} Bh6 {[%emt 0:00:01]} 26. Kf3 {[%emt 0:00:44]} Ke7 {[%emt 0:00:02]} 27. g4 {[%emt 0:00:26]} hxg4+ {[%emt 0:00:02]} 28. Kxg4 {[%emt 0:00:01]} Bf4 {[%emt 0:00:21]} 29. Rf1 {[%emt 0:00:30]} a5 {[%emt 0:00:48]} 30. Rff2 {[%emt 0:00:16]} Kf6 {[%emt 0:00:19]} 31. Rf1 {[%emt 0:00:12]} Rb5 {[%emt 0:01:00]} 32. Rd1 {[%emt 0:00:12]} Rbc5 {[%emt 0:00:34]} 33. Kf3 {[%emt 0:00:06]} Rb6 {[%emt 0:00:04]} 34. a4 {[%emt 0:00:08]} g6 {[%emt 0:00:18]} 35. fxg6 {[%emt 0:00:05]} fxg6 {[%emt 0:00:02]} 36. Rg1 {[%emt 0:00:13]} Rb7 {[%emt 0:01:55]} 37. Reg2 {[%emt 0:00:03]} Rg7 {[%emt 0:00:01]} 38. Rd1 {[%emt 0:00:12]} Ke7 {[%emt 0:00:20]} 39. Rdg1 {[%emt 0:00:11]} Kf6 {[%emt 0:00:03]} 40. h5 {[%emt 0:00:29]} g5 {[%emt 0:00:01]} 41. Kg4 {[%emt 0:00:01]} Rh7 {[%emt 0:00:05]} 42. Rd1 {[%emt 0:00:04]} Ke7 {[%emt 0:00:07]} 43. Bb1 {[%emt 0:00:06]} Ke6 {[%emt 0:00:05]} 44. Rd5 {[%emt 0:00:16]} Rhc7 {[%emt 0:00:28]} 45. h6 {[%emt 0:00:11]} Be3 {[%emt 0:00:18]} 46. Rxc5 {[%emt 0:00:15]} Rxc5 {[%emt 0:00:06]} 47. h7 {[%emt 0:00:08]} Rc8 {[%emt 0:00:01]} 48. Ba2 {[%emt 0:00:04]} d5 {[%emt 0:00:02]} 49. exd5+ {[%emt 0:00:06]} Kxd5 {[%emt 0:00:01]} 50. Kf5 {[%emt 0:00:11]} e4 {[%emt 0:00:17]} 51. Rh2 {[%emt 0:00:14]} Rh8 {[%emt 0:00:03]} 52. Kg6 {[%emt 0:00:00]} Bf4 {[%emt 0:00:01]} 53. Rh1 {[%emt 0:00:15]} e3 {[%emt 0:00:02]} 54. Rd1+ {[%emt 0:00:12]} Ke4 {[%emt 0:00:17]} 55. Bxc4 {[%emt 0:00:07]} g4 {[%emt 0:00:17]} 56. Be2 {[%emt 0:00:30]} g3 {[%emt 0:00:03]} 57. Rd4+ {[%emt 0:00:03]} Ke5 {[%emt 0:00:02]} 58. Bf3 {[%emt 0:00:04]} Rc8 59. Re4+ Kd6 60. Rxf4 Ra8 1-0

[Event "ESP-ch Rapid 2018"]
[Site "Linares"]
[Date "2018.08.19"]
[Round "9"]
[White "Diaz Rodriguez, Jose Antonio"]
[Black "Alvarez Serrano, Carlos"]
[Result "0-1"]
[ECO "B50"]
[WhiteElo "1991"]
[BlackElo "2225"]
[Annotator "NA"]
[PlyCount "73"]
[EventDate "2018.08.19"]
[EventType "team-tourn"]
[EventCountry "ESP"]
[SourceTitle "playchess.com"]
[Source "ChessBase"]
[SourceQuality "1"]
[TimeControl "900+5"]

1. e4 {[%emt 0:00:00]} c5 {[%emt 0:00:00]} 2. Nf3 {[%emt 0:00:00]} d6 {[%emt 0:00:00]} 3. c3 {[%emt 0:00:00]} Nf6 {[%emt 0:00:00]} 4. h3 {[%emt 0:00:03]} Bd7 {[%emt 0:00:01]} 5. Bd3 {[%emt 0:00:04]} Bc6 {[%emt 0:00:03]} 6. Qe2 {[%emt 0:00:02]} Nbd7 {[%emt 0:00:18]} 7. O-O {[%emt 0:00:10]} g6 {[%emt 0:00:06]} 8. Bc2 {[%emt 0:00:03]} e5 {[%emt 0:00:01]} 9. d4 {[%emt 0:00:23]} b6 {[%emt 0:00:20]} 10. dxe5 {[%emt 0:00:22]} dxe5 {[%emt 0:00:06]} 11. Rd1 {[%emt 0:00:26]} Qc7 {[%emt 0:00:01]} 12. Bg5 {[%emt 0:00:53]} Bg7 {[%emt 0:00:01]} 13. Nbd2 {[%emt 0:00:15]} O-O {[%emt 0:00:03]} 14. Qe3 {[%emt 0:00:23]} Rad8 {[%emt 0:00:08]} 15. Nf1 {[%emt 0:00:43]} Qb7 {[%emt 0:00:01]} 16. Ng3 {[%emt 0:00:02]} c4 {[%emt 0:00:27]} 17. Rd6 {[%emt 0:00:27]} Rc8 {[%emt 0:00:53]} 18. Rad1 {[%emt 0:00:30]} Ne8 {[%emt 0:00:01]} 19. R6d2 {[%emt 0:02:32]} Nc5 {[%emt 0:00:01]} 20. Bh6 {[%emt 0:01:09]} f6 {[%emt 0:00:34]} 21. Bxg7 {[%emt 0:00:26]} Kxg7 {[%emt 0:00:02]} 22. b3 {[%emt 0:00:23]} cxb3 {[%emt 0:00:11]} 23. axb3 {[%emt 0:00:17]} Nc7 {[%emt 0:00:22]} 24. b4 {[%emt 0:01:45]} N5e6 {[%emt 0:00:01]} 25. Bb3 {[%emt 0:02:03]} Rcd8 {[%emt 0:00:07]} 26. Rd6 {[%emt 0:00:20]} Rxd6 {[%emt 0:00:15]} 27. Rxd6 {[%emt 0:00:02]} Nf4 {[%emt 0:00:05]} 28. Qd2 {[%emt 0:00:38]} Nb5 {[%emt 0:00:01]} 29. Rd8 {[%emt 0:00:17]} Qe7 {[%emt 0:00:27]} 30. Rxf8 {[%emt 0:00:18]} Qxf8 {[%emt 0:00:03]} 31. Nh4 {[%emt 0:00:14]} Kh8 {[%emt 0:00:24]} 32. Bd5 {[%emt 0:00:41]} Qd6 {[%emt 0:00:13]} 33. c4 {[%emt 0:00:05]} Nd4 {[%emt 0:00:01]} 34. b5 {[%emt 0:00:30]} Bd7 {[%emt 0:00:01]} 35. Qa2 {[%emt 0:00:13]} g5 {[%emt 0:01:21]} 36. Nhf5 {[%emt 0:01:15]} Bxf5 {[%emt 0:00:07]} 37. Nxf5 0-1

[Event "ESP-ch Rapid 2018"]
[Site "Linares"]
[Date "2018.08.19"]
[Round "9"]
[White "Ordonez Torres, Jesus"]
[Black "Beltran De Heredia E, Miguel"]
[Result "0-1"]
[ECO "B56"]
[WhiteElo "1989"]
[BlackElo "2229"]
[Annotator "NA"]
[PlyCount "198"]
[EventDate "2018.08.19"]
[EventType "team-tourn"]
[EventCountry "ESP"]
[SourceTitle "playchess.com"]
[Source "ChessBase"]
[SourceQuality "1"]
[TimeControl "900+5"]

1. e4 {[%emt 0:00:00]} c5 {[%emt 0:00:00]} 2. Nf3 d6 3. d4 {[%emt 0:00:00]} cxd4 {[%emt 0:00:00]} 4. Nxd4 {[%emt 0:00:01]} Nf6 {[%emt 0:00:00]} 5. Nc3 {[%emt 0:00:02]} Nc6 {[%emt 0:00:00]} 6. f3 {[%emt 0:00:20]} e5 {[%emt 0:00:11]} 7. Nb3 {[%emt 0:00:21]} Be6 {[%emt 0:00:03]} 8. Bg5 {[%emt 0:00:21]} Be7 {[%emt 0:00:05]} 9. Bxf6 {[%emt 0:03:03]} Bxf6 {[%emt 0:00:01]} 10. Nd5 {[%emt 0:00:01]} Bg5 {[%emt 0:00:48]} 11. Be2 {[%emt 0:00:49]} O-O {[%emt 0:00:07]} 12. O-O {[%emt 0:00:14]} Rc8 {[%emt 0:00:25]} 13. c3 {[%emt 0:00:06]} Kh8 {[%emt 0:00:37]} 14. Qd3 {[%emt 0:00:30]} Ne7 {[%emt 0:01:24]} 15. Nxe7 {[%emt 0:00:48]} Qxe7 {[%emt 0:00:02]} 16. Rad1 {[%emt 0:00:25]} Rfd8 {[%emt 0:00:02]} 17. Kh1 {[%emt 0:01:18]} g6 {[%emt 0:00:08]} 18. Qb5 {[%emt 0:00:48]} a6 {[%emt 0:01:46]} 19. Qa5 {[%emt 0:00:15]} Kg7 {[%emt 0:01:55]} 20. Qa3 {[%emt 0:00:10]} d5 {[%emt 0:00:39]} 21. Qxe7 {[%emt 0:00:08]} Bxe7 {[%emt 0:00:01]} 22. Bd3 {[%emt 0:00:35]} Rc7 {[%emt 0:01:35]} 23. exd5 {[%emt 0:00:35]} Bxd5 {[%emt 0:00:04]} 24. Bc2 {[%emt 0:00:23]} Rcd7 {[%emt 0:00:46]} 25. a3 {[%emt 0:00:25]} b6 {[%emt 0:00:14]} 26. Nc1 {[%emt 0:00:13]} Bc4 {[%emt 0:00:17]} 27. Rxd7 {[%emt 0:00:06]} Rxd7 {[%emt 0:00:01]} 28. Rd1 {[%emt 0:00:01]} Rxd1+ {[%emt 0:00:23]} 29. Bxd1 {[%emt 0:00:01]} Bg5 {[%emt 0:00:29]} 30. Ne2 {[%emt 0:00:47]} a5 {[%emt 0:00:06]} 31. b3 {[%emt 0:00:28]} Bd3 {[%emt 0:00:12]} 32. c4 {[%emt 0:00:19]} Bd2 {[%emt 0:00:32]} 33. Kg1 {[%emt 0:00:10]} f5 {[%emt 0:00:02]} 34. Kf2 {[%emt 0:00:11]} f4 {[%emt 0:00:13]} 35. g4 {[%emt 0:00:40]} g5 {[%emt 0:00:03]} 36. Ng1 {[%emt 0:00:22]} h6 {[%emt 0:00:21]} 37. Nh3 {[%emt 0:00:03]} Kf6 {[%emt 0:00:26]} 38. Kg2 {[%emt 0:00:11]} Be3 {[%emt 0:01:59]} 39. Nf2 {[%emt 0:00:06]} Bxf2 {[%emt 0:00:07]} 40. Kxf2 {[%emt 0:00:02]} e4 {[%emt 0:00:02]} 41. fxe4 {[%emt 0:00:14]} Bxe4 {[%emt 0:00:02]} 42. b4 {[%emt 0:00:09]} axb4 {[%emt 0:00:04]} 43. axb4 {[%emt 0:00:02]} Ke5 {[%emt 0:00:09]} 44. Be2 {[%emt 0:00:44]} Kd4 {[%emt 0:00:02]} 45. Bf1 {[%emt 0:00:11]} Bc2 {[%emt 0:00:10]} 46. Be2 {[%emt 0:00:32]} Bb3 {[%emt 0:00:03]} 47. c5 {[%emt 0:00:01]} bxc5 {[%emt 0:00:01]} 48. bxc5 {[%emt 0:00:01]} Kxc5 {[%emt 0:00:04]} 49. Bd3 {[%emt 0:00:23]} Kd4 {[%emt 0:00:06]} 50. Bf5 {[%emt 0:00:04]} Bd5 {[%emt 0:00:06]} 51. Bd7 {[%emt 0:00:18]} Ke5 {[%emt 0:00:05]} 52. Bb5 {[%emt 0:00:06]} Bf7 {[%emt 0:00:36]} 53. Be2 {[%emt 0:00:04]} Be6 {[%emt 0:00:06]} 54. Bf3 {[%emt 0:00:05]} Kf6 {[%emt 0:00:09]} 55. Bd1 {[%emt 0:00:06]} Bd5 {[%emt 0:00:16]} 56. Be2 {[%emt 0:00:05]} Ke5 {[%emt 0:00:05]} 57. Bd1 {[%emt 0:00:03]} Bc6 {[%emt 0:00:13]} 58. Be2 {[%emt 0:00:05]} Bd7 {[%emt 0:00:27]} 59. Bd1 {[%emt 0:00:05]} Kf6 {[%emt 0:00:05]} 60. Be2 {[%emt 0:00:02]} h5 {[%emt 0:00:18]} 61. h3 {[%emt 0:00:23]} hxg4 {[%emt 0:00:02]} 62. hxg4 {[%emt 0:00:02]} Bc6 {[%emt 0:00:03]} 63. Bd1 {[%emt 0:00:05]} Ke5 {[%emt 0:00:01]} 64. Be2 {[%emt 0:00:04]} Kd4 {[%emt 0:00:04]} 65. Bd1 {[%emt 0:00:08]} Kd3 {[%emt 0:00:18]} 66. Bb3 {[%emt 0:00:18]} Kd2 {[%emt 0:00:11]} 67. Be6 {[%emt 0:00:08]} Kd3 {[%emt 0:00:19]} 68. Bf5+ {[%emt 0:00:08]} Kd4 {[%emt 0:00:01]} 69. Bc8 {[%emt 0:00:12]} Be4 {[%emt 0:00:16]} 70. Bd7 {[%emt 0:00:08]} Bb7 {[%emt 0:00:04]} 71. Be6 {[%emt 0:00:05]} Ke4 {[%emt 0:00:06]} 72. Bf5+ {[%emt 0:00:06]} Ke5 {[%emt 0:00:01]} 73. Bd7 {[%emt 0:00:13]} Bd5 {[%emt 0:00:02]} 74. Ba4 {[%emt 0:00:17]} Ke4 {[%emt 0:00:12]} 75. Bc2+ {[%emt 0:00:01]} Kd4 {[%emt 0:00:01]} 76. Bf5 {[%emt 0:00:04]} Ke5 {[%emt 0:00:02]} 77. Bc2 {[%emt 0:00:04]} Be6 {[%emt 0:00:05]} 78. Bd1 {[%emt 0:00:02]} Kd4 {[%emt 0:00:03]} 79. Be2 {[%emt 0:00:07]} Kc3 {[%emt 0:00:00]} 80. Bd1 {[%emt 0:00:06]} Kd2 {[%emt 0:00:05]} 81. Be2 {[%emt 0:00:08]} Bd5 {[%emt 0:00:01]} 82. Bb5 {[%emt 0:00:08]} Be4 {[%emt 0:00:01]} 83. Bd7 {[%emt 0:00:04]} Bd5 {[%emt 0:00:05]} 84. Bc8 {[%emt 0:00:04]} Kd3 {[%emt 0:00:01]} 85. Bf5+ {[%emt 0:00:04]} Kd4 {[%emt 0:00:01]} 86. Bc8 {[%emt 0:00:02]} Ke5 {[%emt 0:00:04]} 87. Bd7 {[%emt 0:00:05]} Be6 {[%emt 0:00:01]} 88. Bc6 {[%emt 0:00:16]} Bxg4 {[%emt 0:00:01]} 89. Bb7 {[%emt 0:00:03]} Bf5 {[%emt 0:00:01]} 90. Bc6 {[%emt 0:00:04]} g4 {[%emt 0:00:02]} 91. Bb5 {[%emt 0:00:04]} Be4 {[%emt 0:00:01]} 92. Ba6 {[%emt 0:00:03]} g3+ {[%emt 0:00:01]} 93. Ke2 {[%emt 0:00:04]} Kd4 {[%emt 0:00:02]} 94. Bc8 {[%emt 0:00:11]} f3+ {[%emt 0:00:01]} 95. Kf1 {[%emt 0:00:06]} Ke3 {[%emt 0:00:02]} 96. Bh3 {[%emt 0:00:04]} Bd3+ {[%emt 0:00:06]} 97. Kg1 {[%emt 0:00:06]} f2+ {[%emt 0:00:07]} 98. Kh1 {[%emt 0:00:04]} Be4+ {[%emt 0:00:01]} 99. Bg2 {[%emt 0:00:03]} f1=Q# 0-1

[Event "ESP-ch Rapid 2018"]
[Site "Linares"]
[Date "2018.08.19"]
[Round "9"]
[White "Ruiz Casado, Francisco Javier"]
[Black "Redondo Flores, David"]
[Result "0-1"]
[ECO "A89"]
[WhiteElo "1975"]
[BlackElo "1971"]
[Annotator "NA"]
[PlyCount "116"]
[EventDate "2018.08.19"]
[EventType "team-tourn"]
[EventCountry "ESP"]
[SourceTitle "playchess.com"]
[Source "ChessBase"]
[SourceQuality "1"]
[TimeControl "900+5"]

1. d4 {[%emt 0:00:00]} d6 {[%emt 0:00:00]} 2. Nf3 {[%emt 0:00:02]} g6 {[%emt 0:00:00]} 3. c4 {[%emt 0:00:03]} f5 {[%emt 0:00:00]} 4. g3 {[%emt 0:00:14]} Nf6 {[%emt 0:00:01]} 5. Bg2 {[%emt 0:00:02]} Bg7 {[%emt 0:00:01]} 6. O-O {[%emt 0:00:02]} O-O {[%emt 0:00:02]} 7. Nc3 {[%emt 0:00:07]} Nc6 {[%emt 0:00:02]} 8. Re1 {[%emt 0:00:41]} e5 {[%emt 0:00:13]} 9. dxe5 {[%emt 0:00:29]} dxe5 {[%emt 0:00:03]} 10. Qb3 {[%emt 0:00:33]} e4 {[%emt 0:00:33]} 11. c5+ {[%emt 0:00:30]} Kh8 {[%emt 0:00:05]} 12. Ng5 {[%emt 0:00:10]} Qe7 {[%emt 0:00:18]} 13. Nh3 {[%emt 0:02:25]} Qxc5 {[%emt 0:00:21]} 14. Bf4 {[%emt 0:00:55]} Na5 {[%emt 0:02:20]} 15. Qc2 {[%emt 0:00:19]} Be6 {[%emt 0:00:21]} 16. Be3 {[%emt 0:00:13]} Qe7 {[%emt 0:00:08]} 17. Nb5 {[%emt 0:00:28]} Nc4 {[%emt 0:00:28]} 18. Bf4 {[%emt 0:00:38]} Nd5 {[%emt 0:00:31]} 19. Rad1 {[%emt 0:02:18]} c6 {[%emt 0:00:42]} 20. Nd4 {[%emt 0:00:42]} Nxf4 {[%emt 0:00:07]} 21. Nxf4 {[%emt 0:00:02]} Bg8 {[%emt 0:00:05]} 22. b3 {[%emt 0:00:36]} Ne5 {[%emt 0:00:48]} 23. Qc1 {[%emt 0:00:36]} Rad8 {[%emt 0:00:27]} 24. Nc2 {[%emt 0:00:04]} g5 {[%emt 0:00:42]} 25. Nh5 {[%emt 0:01:15]} Bh6 {[%emt 0:00:23]} 26. h4 {[%emt 0:00:02]} Bf7 {[%emt 0:00:24]} 27. hxg5 {[%emt 0:00:02]} Bxg5 {[%emt 0:00:03]} 28. Nf4 {[%emt 0:00:02]} Ng4 {[%emt 0:00:34]} 29. Bh3 {[%emt 0:00:14]} e3 {[%emt 0:01:37]} 30. Nxe3 {[%emt 0:00:35]} Nxe3 {[%emt 0:00:49]} 31. Qxe3 {[%emt 0:00:06]} Qxe3 {[%emt 0:00:06]} 32. fxe3 {[%emt 0:00:01]} Bxf4 {[%emt 0:00:36]} 33. exf4 {[%emt 0:00:17]} Bd5 {[%emt 0:00:02]} 34. Bg2 {[%emt 0:00:10]} Bxg2 {[%emt 0:01:33]} 35. Kxg2 {[%emt 0:00:02]} Rfe8 {[%emt 0:00:23]} 36. Kf3 {[%emt 0:00:02]} Kg7 {[%emt 0:00:15]} 37. Rxd8 {[%emt 0:00:34]} Rxd8 {[%emt 0:00:01]} 38. e4 {[%emt 0:00:02]} fxe4+ {[%emt 0:01:10]} 39. Rxe4 {[%emt 0:00:06]} Kf6 {[%emt 0:00:05]} 40. g4 {[%emt 0:00:17]} Rd2 {[%emt 0:00:23]} 41. g5+ {[%emt 0:00:44]} Kf7 {[%emt 0:00:37]} 42. Kg4 {[%emt 0:00:19]} Rxa2 {[%emt 0:00:18]} 43. Rd4 {[%emt 0:00:14]} Re2 {[%emt 0:00:12]} 44. Kf5 {[%emt 0:00:11]} Re7 {[%emt 0:00:07]} 45. Rd3 {[%emt 0:00:05]} a5 {[%emt 0:00:14]} 46. Kg4 {[%emt 0:00:11]} b5 {[%emt 0:00:13]} 47. f5 {[%emt 0:00:08]} a4 {[%emt 0:00:23]} 48. bxa4 {[%emt 0:00:06]} bxa4 {[%emt 0:00:01]} 49. Kh5 {[%emt 0:00:09]} Ra7 {[%emt 0:00:06]} 50. Kh6 {[%emt 0:00:31]} a3 {[%emt 0:00:06]} 51. g6+ {[%emt 0:00:27]} hxg6 {[%emt 0:00:06]} 52. fxg6+ {[%emt 0:00:01]} Kf6 {[%emt 0:00:09]} 53. g7 {[%emt 0:00:07]} Ra8 {[%emt 0:00:04]} 54. Rf3+ {[%emt 0:00:09]} Ke7 {[%emt 0:00:02]} 55. Kh7 {[%emt 0:00:08]} a2 {[%emt 0:00:01]} 56. Rf1 {[%emt 0:00:08]} a1=Q {[%emt 0:00:09]} 57. Rxa1 Rxa1 {[%emt 0:00:01]} 58. g8=Q {[%emt 0:00:08]} Rh1+ {[%emt 0:00:01]} 0-1